bitfinex/quotes_SOLUSD_20240811
["timestamp","ask_amount","ask_price","bid_price","bid_amount"]
[1723410389408,20.0,144.35,144.28,32.4219]
[1723410389636,20.0,144.35,144.29,1.38569865]
[1723410390119,20.0,144.35,144.28,32.4219]
[1723410390318,28.35,144.41,144.28,32.4219]
[1723410390319,28.35,144.38,144.3,6.9299]
[1723410390633,28.35,144.38,144.29,17.3255]
[1723410390852,35.2771,144.36,144.29,24.2559]
[1723410391712,35.2753,144.4,144.31,6.929]
[1723410391937,28.35,144.4,144.33,6.9285]
[1723410392247,28.35,144.4,144.28,32.67288]
[1723410392248,6.9262,144.38,144.3,6.9296]
[1723410392412,12.2776,144.43,144.28,49.7483]
[1723410392413,28.35,144.36,144.28,49.7483]
[1723410392921,6.9257,144.39,144.29,28.47549]
[1723410393234,28.35,144.4,144.28,51.13368409]
[1723410393235,6.9276,144.35,144.28,56.6791]
[1723410393438,17.3109,144.42,144.29,1.29493656]
[1723410393741,35.2756,144.4,144.33,6.9282]
[1723410393913,6.9258,144.39,144.31,45.6735]
[1723410394118,28.35,144.4,144.31,45.6735]
[1723410394427,2.82041403,144.43,144.3,0.12549]
[1723410394428,2.82041403,144.43,144.36,32.9149]
[1723410394631,29.1731137,144.46,144.37,52.5926]
[1723410394837,28.35,144.44,144.36,32.9149]
[1723410395340,29.1731137,144.46,144.38,6.9261]
[1723410395850,28.35,144.44,144.36,50.2317]
[1723410396015,28.35,144.44,144.36,57.1583]
[1723410396344,29.1731137,144.46,144.39,6.9255]
[1723410396548,0.8231137,144.46,144.39,6.9255]
[1723410397244,0.8231137,144.46,144.39,45.6641]
[1723410397448,0.8231137,144.46,144.4,6.9251]
[1723410397652,6.9237,144.43,144.36,32.9149]
[1723410397822,28.35,144.44,144.36,32.9149]
[1723410397823,6.9242,144.42,144.36,32.9149]
[1723410398020,35.2733,144.44,144.36,32.9149]
[1723410398236,6.9239,144.43,144.36,32.9149]
[1723410398621,35.2733,144.44,144.36,39.8419]
[1723410398918,0.8231137,144.46,144.36,39.8419]
[1723410398919,28.35,144.4,144.36,32.9149]
[1723410399124,28.35,144.38,144.35,12.0357]
[1723410399318,28.35,144.4,144.35,12.0357]
[1723410399949,35.2752,144.4,144.35,12.0357]
[1723410400544,28.35,144.4,144.35,12.0357]
[1723410400757,28.35,144.42,144.35,12.0357]
[1723410401226,28.35,144.44,144.38,6.926]
[1723410401544,28.35,144.44,144.35,12.0357]
[1723410401729,0.8231137,144.46,144.35,12.0357]
[1723410401730,35.2745,144.42,144.35,12.0357]
[1723410402039,28.35,144.42,144.35,12.0357]
[1723410402550,35.2753,144.4,144.35,12.0357]
[1723410402729,28.35,144.38,144.32,32.9149]
[1723410403051,28.35,144.4,144.33,17.3213]
[1723410403241,35.2752,144.4,144.33,24.2498]
[1723410403434,7.05139,144.39,144.33,17.3213]
[1723410403617,21.12175871,144.45,144.28,32.9149]
[1723410403618,28.35,144.34,144.28,32.9149]
[1723410403824,6.9285,144.33,144.28,32.9149]
[1723410404040,28.35,144.34,144.28,32.9149]
[1723410404451,28.35,144.36,144.28,50.242]
[1723410404743,26.9276,144.35,144.28,57.1729]
[1723410404947,6.9287,144.33,144.28,32.9149]
[1723410405160,28.35,144.32,144.27,12.0357]
[1723410405325,35.28,144.3,144.24,50.2464]
[1723410405528,28.35,144.28,144.23,12.0357]
[1723410405749,28.35,144.26,144.2,6.9348]
[1723410406246,28.35,144.26,144.19,62.2883]
[1723410406454,6.9334,144.23,144.19,44.9506]
[1723410406632,28.35,144.26,144.2,6.9347]
[1723410407025,38.13418805,144.26,144.2,6.9347]
[1723410407331,38.13418805,144.26,144.19,44.9506]
[1723410407635,7.05789,144.25,144.19,44.9506]
[1723410409348,6.9324,144.25,144.19,44.9506]
[1723410409725,31.20228805,144.26,144.19,44.9506]
[1723410409931,28.47549,144.24,144.19,44.9506]
[1723410410128,35.2829,144.24,144.19,44.9506]
[1723410410741,0.12549,144.23,144.15,19.113]
[1723410410940,6.9338,144.22,144.15,19.113]
[1723410411148,35.2829,144.24,144.17,6.9361]
[1723410411455,6.9334,144.23,144.17,6.9361]
[1723410411658,28.35,144.24,144.15,12.1761]
[1723410411947,28.35,144.22,144.15,12.1761]
[1723410412128,6.9342,144.22,144.15,19.1131]
[1723410412455,6.9324,144.25,144.17,17.3405]
[1723410412773,6.9319,144.26,144.19,6.9352]
[1723410413051,6.9319,144.26,144.2,1.38648875]
[1723410413052,20.0,144.25,144.2,1.38648875]
[1723410413255,20.0,144.25,144.21,1.38639275]
[1723410414353,20.0,144.26,144.21,1.38639275]
[1723410415045,6.9309,144.29,144.22,1.38629661]
[1723410415352,6.9304,144.29,144.23,38.9111]
[1723410415652,28.35,144.3,144.23,31.9778]
[1723410416030,6.9309,144.29,144.24,13.1131]
[1723410416251,6.9299,144.31,144.24,20.0459]
[1723410416634,6.9301,144.3,144.24,20.0459]
[1723410417144,6.9301,144.3,144.24,13.1131]
[1723410418749,28.35,144.3,144.24,13.1131]
[1723410418949,0.12549,144.29,144.23,31.9778]
[1723410419134,28.35,144.28,144.23,31.9778]
[1723410419329,6.9314,144.27,144.23,31.9778]
[1723410419546,28.35,144.28,144.23,31.9778]
[1723410419894,6.932,144.26,144.23,31.9778]
[1723410420165,20.0,144.29,144.23,31.9778]
[1723410420462,6.9311,144.28,144.23,31.9778]
[1723410420759,20.0,144.29,144.23,31.9778]
[1723410420968,6.9324,144.25,144.23,31.9778]
[1723410421269,20.0,144.29,144.2,58.3561]
[1723410421569,6.9313,144.28,144.21,6.9342]
[1723410421751,20.0,144.29,144.2,36.9408]
[1723410421934,28.47549,144.28,144.2,12.6695]
[1723410422140,6.9329,144.24,144.2,12.6695]
[1723410422351,35.2823,144.26,144.2,12.6695]
[1723410422736,6.934,144.22,144.2,12.6695]
[1723410422930,6.9347,144.21,144.19,30.35]
[1723410423139,28.35,144.24,144.19,30.35]
[1723410423440,28.35,144.26,144.19,30.35]
[1723410423674,20.0,144.25,144.19,30.35]
[1723410423884,6.9338,144.22,144.19,30.35]
[1723410424383,28.60098,144.24,144.19,30.35]
[1723410424678,6.9328,144.24,144.19,30.35]
[1723410424867,6.9324,144.25,144.2,1.38686689]
[1723410425082,6.9324,144.25,144.19,30.35]
[1723410425083,6.9324,144.25,144.21,1.3866222]
[1723410425591,6.933,144.24,144.19,30.35]
[1723410425759,28.35,144.24,144.19,30.35]
[1723410425959,28.47549,144.22,144.16,12.8532]
[1723410426464,28.47549,144.22,144.15,32.3894]
[1723410426465,6.9358,144.18,144.15,32.3894]
[1723410426763,37.40600443,144.26,144.15,78.0813]
[1723410426988,6.934,144.22,144.16,8.3214866]
[1723410427204,6.9324,144.25,144.18,6.9353]
[1723410427488,298.00600443,144.3,144.19,29.73641978]
[1723410427657,37.40600443,144.3,144.21,28.35]
[1723410427858,6.931,144.28,144.22,1.38642558]
[1723410428372,6.931,144.28,144.2,12.5384]
[1723410428373,28.35,144.28,144.2,12.5384]
[1723410428568,6.9334,144.23,144.2,12.5384]
[1723410428777,6.9329,144.24,144.2,12.5384]
[1723410428979,32.45985403,144.3,144.2,12.5384]
[1723410429270,28.35,144.3,144.21,1.38631407]
[1723410429466,9.05600443,144.34,144.25,6.9319]
[1723410429684,6.929,144.33,144.26,8.31617414]
[1723410429886,6.929,144.33,144.27,1.38427818]
[1723410430090,28.35,144.36,144.29,13.2441]
[1723410430264,28.35,144.36,144.3,1.3839904]
[1723410430465,28.35,144.36,144.3,1.38581846]
[1723410430867,6.9282,144.34,144.3,1.38580355]
[1723410432276,6.9286,144.33,144.29,43.3423]
[1723410432588,6.9281,144.34,144.29,43.3423]
[1723410432778,6.9281,144.34,144.3,1.38516042]
[1723410433500,336.8407,144.41,144.3,1.38516042]
[1723410433501,28.35,144.4,144.3,1.38516042]
[1723410434376,6.9267,144.37,144.3,24.2547]
[1723410434578,28.35,144.4,144.3,18.71034423]
[1723410434778,45.6608,144.42,144.32,6.9289]
[1723410434977,28.35,144.4,144.3,17.3248]
[1723410435178,6.9281,144.34,144.29,43.3423]
[1723410435489,6.9271,144.36,144.29,67.5984]
[1723410435682,6.9266,144.37,144.3,6.9298]
[1723410436303,28.35,144.35,144.29,43.3423]
[1723410436482,0.12549,144.38,144.29,43.3423]
[1723410436483,28.35,144.37,144.29,43.3423]
[1723410436688,6.9275,144.36,144.29,50.2723]
[1723410436883,6.9267,144.37,144.29,60.6681]
[1723410437083,6.9267,144.37,144.29,89.0181]
[1723410437293,6.9263,144.38,144.32,6.9286]
[1723410437496,6.9257,144.39,144.31,28.35]
[1723410437687,6.9247,144.41,144.34,6.928]
[1723410437873,6.9252,144.4,144.34,6.928]
[1723410438078,6.9252,144.4,144.31,17.3227]
[1723410438079,28.35,144.39,144.31,17.3227]
[1723410438274,28.35,144.37,144.3,6.9298]
[1723410438719,6.9272,144.36,144.29,50.2727]
[1723410438890,6.9278,144.35,144.29,43.3423]
[1723410439110,6.9278,144.35,144.29,50.2726]
[1723410439315,6.928,144.34,144.29,43.3423]
[1723410439611,28.35,144.35,144.29,43.3423]
[1723410439787,28.35,144.33,144.29,43.3423]
[1723410440180,6.9291,144.32,144.29,43.3423]
[1723410440395,6.9296,144.31,144.29,43.3423]
[1723410440608,6.9296,144.31,144.25,50.6148]
[1723410440911,35.2789,144.33,144.26,6.9319]
[1723410441091,6.9291,144.32,144.26,6.9319]
[1723410441495,6.93,144.3,144.25,43.6825]
[1723410441808,28.35,144.31,144.25,50.6147]
[1723410442000,35.2785,144.33,144.26,6.9317]
[1723410442197,35.2785,144.33,144.25,43.6825]
[1723410442198,6.9281,144.34,144.27,6.9313]
[1723410442384,35.2776,144.35,144.27,17.3285]
[1723410442588,35.2776,144.35,144.28,6.9309]
[1723410442783,28.35,144.35,144.27,17.3285]
[1723410442986,9.05600443,144.39,144.27,17.3285]
[1723410442987,6.9261,144.38,144.3,17.3239]
[1723410443290,6.927,144.37,144.3,17.3239]
[1723410443597,6.927,144.37,144.3,24.2534]
[1723410443809,6.927,144.37,144.31,6.9294]
[1723410444489,28.35,144.39,144.32,6.9288]
[1723410444685,28.35,144.41,144.33,18.70653181]
[1723410444897,6.9256,144.4,144.33,24.2495]
[1723410445188,6.9257,144.39,144.34,12.9811]
[1723410445389,6.9264,144.38,144.34,12.9811]
[1723410445612,6.9264,144.38,144.33,30.7014]
[1723410446523,6.9257,144.39,144.33,30.7014]
[1723410446697,28.35,144.41,144.34,6.9276]
[1723410447223,9.05600443,144.45,144.35,18.70373854]
[1723410447224,35.2739,144.43,144.35,18.70373854]
[1723410447428,6.9239,144.43,144.36,1.38506929]
[1723410447789,28.35,144.39,144.33,37.6297]
[1723410448413,35.2757,144.39,144.33,37.6297]
[1723410448589,6.9262,144.38,144.33,30.7014]
[1723410448795,35.2757,144.39,144.33,30.7014]
[1723410449016,28.35,144.39,144.33,30.7014]
[1723410449234,35.2757,144.39,144.33,30.7014]
[1723410449938,6.9263,144.38,144.33,30.7014]
[1723410450834,28.35,144.37,144.33,30.7014]
[1723410451400,35.278,144.35,144.29,31.0238]
[1723410451604,28.35,144.33,144.29,31.0238]
[1723410451826,28.35,144.31,144.27,13.1626]
[1723410452007,0.12549,144.34,144.27,20.0936]
[1723410452008,28.35,144.33,144.27,20.0936]
[1723410452409,35.2787,144.33,144.27,20.0936]
[1723410452618,35.2787,144.33,144.27,13.1626]
[1723410452927,6.93,144.3,144.25,31.0238]
[1723410453228,35.2796,144.31,144.25,31.0238]
[1723410454645,6.9301,144.3,144.25,31.0238]
[1723410454815,28.35,144.31,144.25,31.0238]
[1723410455023,35.2795,144.31,144.25,31.0238]
[1723410455239,6.9301,144.3,144.25,31.0238]
[1723410455823,28.35,144.29,144.25,31.0238]
[1723410456019,28.35,144.29,144.23,13.1626]
[1723410456020,28.35,144.27,144.23,13.1626]
[1723410456525,28.35,144.27,144.21,31.0238]
[1723410456735,35.2815,144.27,144.21,37.9581]
[1723410457044,6.9319,144.26,144.21,31.0238]
[1723410458139,35.2815,144.27,144.21,37.958]
[1723410458441,6.9313,144.28,144.21,37.958]
[1723410458626,6.9318,144.27,144.21,37.958]
[1723410459854,35.40639,144.29,144.23,6.9332]
[1723410460149,6.9312,144.28,144.22,6.9337]
[1723410461049,6.932,144.26,144.21,31.0238]
[1723410461338,69.62244608,144.34,144.22,17.3337]
[1723410461339,28.35,144.31,144.22,17.3337]
[1723410461646,6.9298,144.31,144.22,17.3337]
[1723410462345,6.9308,144.29,144.23,6.9333]
[1723410462641,6.9309,144.28,144.22,24.2674]
[1723410463021,6.931,144.28,144.22,24.2674]
[1723410464337,6.9305,144.29,144.22,24.2674]
[1723410464961,6.9305,144.29,144.23,6.9333]
[1723410465256,6.9309,144.28,144.22,24.2674]
[1723410466255,6.9305,144.29,144.23,8.31969969]
[1723410466437,6.9305,144.29,144.24,1.38635633]
[1723410466645,6.9305,144.29,144.23,6.9333]
[1723410467450,6.9309,144.28,144.22,24.2674]
[1723410467628,6.9304,144.29,144.23,6.9332]
[1723410467957,6.931,144.28,144.22,24.2674]
[1723410469176,6.9316,144.27,144.21,31.0238]
[1723410469351,35.2816,144.27,144.21,37.958]
[1723410470169,35.2816,144.27,144.21,31.0238]
[1723410470466,28.35,144.27,144.21,31.0238]
[1723410470667,6.9328,144.25,144.21,31.0238]
[1723410470841,28.35,144.23,144.21,31.0238]
[1723410471041,28.35,144.23,144.19,13.1626]
[1723410471042,6.9338,144.22,144.19,13.1626]
[1723410471244,35.2834,144.23,144.19,13.1626]
[1723410471470,6.9339,144.22,144.19,13.1626]
[1723410471640,7.05939,144.22,144.17,31.546]
[1723410471838,6.9344,144.21,144.17,31.546]
[1723410472037,35.2836,144.23,144.17,31.546]
[1723410473065,7.05949,144.22,144.17,31.546]
[1723410473252,6.9344,144.21,144.17,31.546]
[1723410473572,0.12549,144.22,144.17,31.546]
[1723410473874,28.35,144.21,144.15,13.1723]
[1723410474049,0.37647,144.2,144.15,13.1723]
[1723410474245,28.35,144.19,144.15,13.1723]
[1723410474467,6.9358,144.18,144.15,13.1723]
[1723410474845,6.9358,144.18,144.13,31.546]
[1723410475280,28.35,144.17,144.11,13.1723]
[1723410475566,0.12549,144.15,144.11,13.1723]
[1723410475876,28.35,144.17,144.11,13.1723]
[1723410476872,35.2864,144.17,144.11,13.1723]
[1723410477369,7.06239,144.16,144.11,13.1723]
[1723410477864,6.9373,144.15,144.11,13.1723]
[1723410478374,0.25098,144.14,144.1,31.546]
[1723410478675,0.25098,144.14,144.07,13.1723]
[1723410478676,0.12549,144.12,144.07,13.1723]
[1723410478872,0.12549,144.12,144.05,31.546]
[1723410478873,6.9397,144.1,144.05,31.546]
[1723410479078,7.18998,144.12,144.05,38.4879]
[1723410479250,7.18998,144.12,144.05,39.01554128]
[1723410479651,6.939,144.12,144.05,38.488]
[1723410480076,0.37647,144.13,144.07,6.9409]
[1723410480253,71.9381,144.14,144.07,6.9409]
[1723410480455,6.9383,144.13,144.06,24.2952]
[1723410480662,20.0,144.12,144.06,24.2952]
[1723410480887,28.35,144.16,144.06,45.7038]
[1723410481170,9.05600443,144.18,144.08,6.9405]
[1723410481171,26.9372,144.15,144.08,6.9405]
[1723410481389,26.9372,144.15,144.06,45.7038]
[1723410481390,20.0,144.15,144.06,52.6452]
[1723410482068,20.0,144.15,144.06,17.3538]
[1723410482069,28.35,144.14,144.06,17.3538]
[1723410482379,0.37647,144.13,144.06,17.3538]
[1723410482546,6.9396,144.1,144.05,31.546]
[1723410482751,6.9407,144.08,144.05,31.546]
[1723410482967,6.9401,144.09,144.05,31.546]
[1723410483749,0.12549,144.07,144.01,30.9285]
[1723410483970,0.25098,144.07,144.01,30.9285]
[1723410484175,0.12549,144.07,144.01,30.9285]
[1723410484390,0.12549,144.05,144.01,30.9285]
[1723410484548,28.35,144.06,144.0,13.1992]
[1723410484750,6.942,144.05,144.0,13.1992]
[1723410484953,6.942,144.05,144.0,14.58792615]
[1723410485152,6.942,144.05,144.0,13.1992]
[1723410485372,6.9425,144.04,144.0,13.1992]
[1723410485568,28.60098,144.06,143.97,48.293]
[1723410485569,6.9431,144.03,143.97,48.293]
[1723410486484,6.9431,144.03,143.97,55.2388]
[1723410486696,28.60098,144.06,143.97,55.2388]
[1723410486697,6.9425,144.04,143.97,55.2388]
[1723410487059,0.25098,144.06,143.98,28.35]
[1723410487389,7.19288,144.06,143.99,6.9448]
[1723410487560,26.9421,144.05,143.99,6.9448]
[1723410487761,0.25098,144.06,143.97,55.2384]
[1723410487762,28.60098,144.06,143.97,55.2384]
[1723410487984,6.9425,144.04,143.97,55.2384]
[1723410488684,6.943,144.03,143.97,55.2384]
[1723410489057,6.943,144.03,143.97,48.293]
[1723410489384,6.943,144.03,143.96,13.1992]
[1723410489385,35.2948,144.0,143.96,13.1992]
[1723410489683,6.946,143.97,143.95,0.8231137]
[1723410490181,35.2954,143.98,143.95,0.8231137]
[1723410490759,6.9461,143.97,143.95,0.8231137]
[1723410491396,0.37647,143.99,143.95,0.8231137]
[1723410491565,6.9444,144.0,143.95,0.8231137]
[1723410491769,73.35,144.02,143.95,0.8231137]
[1723410491770,7.06949,144.01,143.95,0.8231137]
[1723410491998,15.99940443,144.03,143.95,1.92005532]
[1723410492298,6.9435,144.02,143.96,6.9463]
[1723410492592,6.9435,144.02,143.95,8.86685532]
[1723410492802,6.9435,144.02,143.95,7.7699137]
[1723410492997,6.9444,144.0,143.95,0.8231137]
[1723410493209,6.944,144.01,143.95,0.8231137]
[1723410493400,28.35,144.04,143.95,0.8231137]
[1723410493710,6.9434,144.03,143.97,6.9458]
[1723410493868,21.10177957,144.07,143.95,0.8231137]
[1723410493869,28.35,144.04,143.95,7.7695137]
[1723410494303,6.9443,144.01,143.95,0.8231137]
[1723410494478,6.9437,144.02,143.95,7.7695137]
[1723410495095,6.943,144.03,143.97,6.9457]
[1723410495301,6.9425,144.04,143.97,6.9457]
[1723410495696,6.943,144.03,143.97,6.9457]
[1723410495880,6.943,144.03,143.96,24.3112]
[1723410496579,6.9436,144.02,143.96,24.3112]
[1723410497293,9.05600443,144.05,143.97,6.9456]
[1723410497508,0.12549,144.03,143.96,17.3649]
[1723410497879,6.944,144.01,143.96,17.3649]
[1723410498608,6.9435,144.02,143.96,24.3112]
[1723410499018,6.9435,144.02,143.96,17.3649]
[1723410499812,6.9435,144.02,143.96,24.3111]
[1723410500405,73.60098,144.04,143.97,6.9456]
[1723410500406,45.12549,144.04,143.97,6.9456]
[1723410500608,7.06839,144.04,143.97,6.9456]
[1723410501309,6.9436,144.02,143.96,24.3111]
[1723410501617,6.9435,144.02,143.96,17.3649]
[1723410502905,0.12549,144.04,143.96,17.3649]
[1723410503112,7.06839,144.04,143.97,8.33480542]
[1723410503791,6.9429,144.04,143.98,6.9452]
[1723410503997,6.9429,144.04,143.99,1.38878694]
[1723410504512,6.9429,144.04,143.98,6.9452]
[1723410504701,6.9429,144.04,143.97,6.9458]
[1723410505213,6.943,144.03,143.97,6.9458]
[1723410506105,6.9426,144.04,143.98,6.9452]
[1723410506418,6.9426,144.04,143.99,12.1411]
[1723410507796,15.99800443,144.05,143.99,19.086]
[1723410508002,28.35,144.08,144.0,31.1425]
[1723410508217,20.0,144.07,144.0,31.1425]
[1723410508620,6.9426,144.04,144.0,31.1425]
[1723410508797,6.9421,144.05,144.0,31.1425]
[1723410509199,20.0,144.07,144.0,31.1425]
[1723410509418,28.35,144.06,144.0,31.1425]
[1723410509915,6.9429,144.04,144.0,31.1425]
[1723410510092,22.72,144.06,144.0,31.1425]
[1723410510296,22.72,144.04,143.99,12.1411]
[1723410511209,6.9443,144.01,143.97,31.5069]
[1723410511798,6.9435,144.02,143.97,31.5069]
[1723410512393,22.72,144.04,143.97,31.5069]
[1723410512599,6.943,144.03,143.97,38.4527]
[1723410513126,31.77600443,144.06,143.97,54.2269]
[1723410513425,28.13452906,144.09,144.01,22.72]
[1723410513726,6.942,144.05,144.01,22.72]
[1723410513934,22.72,144.09,143.84,12.0055]
[1723410513935,6.9493,143.9,143.84,12.0055]
[1723410514132,22.72,143.9,143.84,12.0055]
[1723410514344,6.78741803,143.93,143.84,12.0055]
[1723410514345,22.72,143.88,143.84,12.0055]
[1723410514512,22.72,143.9,143.84,12.0055]
[1723410514838,6.9498,143.89,143.84,12.0055]
[1723410515202,6.9507,143.87,143.84,12.0055]
[1723410515827,6.9502,143.88,143.84,12.0055]
[1723410516536,6.9507,143.87,143.83,30.7011]
[1723410518210,6.9513,143.86,143.83,30.7011]
[1723410518809,28.46,143.87,143.83,30.7011]
[1723410518810,6.9518,143.85,143.83,30.7011]
[1723410519636,18.12317259,143.89,143.83,30.7011]
[1723410519637,6.9512,143.86,143.83,30.7011]
[1723410519936,6.9518,143.85,143.83,30.7011]
[1723410520232,28.46,143.87,143.81,0.8231137]
[1723410520403,6.952,143.85,143.81,0.8231137]
[1723410521006,28.46,143.85,143.81,0.8231137]
[1723410521312,28.46,143.83,143.81,0.8231137]
[1723410521515,6.9531,143.82,143.81,0.8231137]
[1723410525860,26.9531,143.82,143.81,0.8231137]
[1723410527031,37.50829,143.82,143.74,32.2234]
[1723410527215,6.9575,143.73,143.69,32.8471]
[1723410527836,28.46,143.71,143.69,32.8471]
[1723410528045,6.958,143.72,143.69,32.8471]
[1723410528342,28.46,143.73,143.69,26.8471]
[1723410528532,56.82829859,143.78,143.68,13.2999]
[1723410528533,6.9589,143.7,143.68,13.2999]
[1723410528739,6.9589,143.7,143.66,0.8231137]
[1723410528740,6.9603,143.67,143.66,0.8231137]
[1723410528973,6.9603,143.67,143.57,17.4122]
[1723410528974,35.24741803,143.67,143.57,17.4122]
[1723410529171,35.4205,143.67,143.61,13.2999]
[1723410529368,58.30539859,143.73,143.61,13.2999]
[1723410529369,6.9599,143.68,143.61,13.2999]
[1723410529688,6.9609,143.66,143.61,13.2999]
[1723410529974,28.46,143.67,143.61,13.2999]
[1723410530181,6.9603,143.68,143.61,20.2627]
[1723410530353,6.9613,143.66,143.61,14.23171062]
[1723410530560,28.46,143.65,143.61,13.2999]
[1723410531273,6.9624,143.63,143.61,13.2999]
[1723410531475,28.46,143.67,143.61,14.69255371]
[1723410531777,10.97949859,143.73,143.62,28.46]
[1723410531993,13.74581803,143.72,143.65,6.961]
[1723410532170,13.74581803,143.72,143.68,35.4194]
[1723410532171,6.78741803,143.72,143.68,35.4194]
[1723410532369,28.46,143.77,143.67,17.4006]
[1723410532578,6.9594,143.69,143.65,32.4948]
[1723410533189,6.9589,143.71,143.65,32.4948]
[1723410533497,28.46,143.73,143.65,32.4948]
[1723410533903,28.46,143.71,143.63,17.4054]
[1723410534571,6.9593,143.7,143.63,17.4054]
[1723410534781,6.9593,143.7,143.63,24.3675]
[1723410535693,28.46,143.71,143.64,6.9616]
[1723410535694,6.9585,143.71,143.64,6.9616]
[1723410535897,0.12549,143.72,143.63,24.3677]
[1723410536085,6.9589,143.7,143.63,17.4054]
[1723410536470,6.9595,143.69,143.63,17.4054]
[1723410537473,6.9599,143.68,143.63,17.4054]
[1723410538002,6.9594,143.69,143.63,17.4054]
[1723410538179,6.9601,143.68,143.61,13.2999]
[1723410538376,6.9597,143.69,143.62,24.61918]
[1723410538683,6.9589,143.7,143.63,52.21318]
[1723410538883,6.9585,143.71,143.64,6.9618]
[1723410539582,28.46,143.73,143.64,45.8635]
[1723410539583,6.9575,143.73,143.64,45.8635]
[1723410539787,6.69027192,143.76,143.68,41.1067]
[1723410539995,6.955,143.79,143.72,35.4178]
[1723410540203,17.66977051,143.81,143.72,28.46]
[1723410540375,260.6,143.82,143.74,28.46]
[1723410540578,28.46,143.83,143.72,28.46]
[1723410540892,28.46,143.83,143.73,45.12549]
[1723410541483,6.9536,143.81,143.74,6.9569]
[1723410541687,35.15027192,143.85,143.76,12.9248]
[1723410541998,7.1972664,143.86,143.76,12.9248]
[1723410541999,7.1972664,143.86,143.78,28.46]
[1723410542180,6.9522,143.84,143.77,50.3354]
[1723410542383,28.46,143.85,143.77,32.9467]
[1723410542606,6.9535,143.82,143.77,32.9467]
[1723410542977,24.58293812,143.88,143.77,32.9467]
[1723410542978,6.9537,143.81,143.77,32.9467]
[1723410543179,6.9555,143.77,143.72,45.8715]
[1723410543482,28.46,143.85,143.72,12.9248]
[1723410543483,28.46,143.75,143.72,12.9248]
[1723410543692,28.46,143.73,143.68,12.9248]
[1723410544011,28.46,143.78,143.68,30.3242]
[1723410544180,28.46,143.76,143.68,30.3242]
[1723410544603,28.46,143.78,143.7,6.9588]
[1723410544784,28.46,143.76,143.68,30.3242]
[1723410544989,35.416,143.76,143.68,37.284]
[1723410545206,28.46,143.78,143.68,30.3242]
[1723410545418,28.46,143.8,143.69,28.71098]
[1723410545616,6.9552,143.78,143.69,28.71098]
[1723410545917,6.9552,143.78,143.7,6.9588]
[1723410546085,6.9558,143.77,143.69,8.47602557]
[1723410546289,60.07341376,143.81,143.7,51.9587]
[1723410546810,6.9527,143.83,143.76,6.9559]
[1723410547007,6.9527,143.83,143.77,1.30112184]
[1723410547184,6.9527,143.83,143.71,0.50196]
[1723410547185,34.21,143.84,143.78,12.9248]
[1723410547387,6.9531,143.82,143.78,12.9248]
[1723410547883,6.9517,143.85,143.79,32.9467]
[1723410548192,7.20713812,143.88,143.79,32.9467]
[1723410548193,6.9535,143.82,143.79,32.9467]
[1723410548399,6.9526,143.83,143.79,32.9467]
[1723410548716,34.21,143.87,143.79,32.9467]
[1723410548717,17.378,143.86,143.79,32.9467]
[1723410549014,6.9541,143.8,143.79,32.9467]
[1723410549215,6.9545,143.79,143.78,12.9248]
[1723410549515,51.5952,143.81,143.74,32.9467]